[Event "Titled Tuesday Blitz March 29 Early 2022"]
[White "Costachi, Mihnea"]
[Black "Obolentseva, Alexandra"]
[WhiteFideId "1217518"]
[BlackFideId "24153648"]
[WhiteElo "2464"]
[BlackElo "2113"]
[Result "1/2-1/2"]
[Round "04"]
[TimeControl "180+1"]
[Date "2022.03.29"]
[WhiteClock "0:00:32"]
[BlackClock "0:00:16"]

1. e4 {[%clk 0:03:00]}  c5 {[%clk 0:02:59]} 2. b3 {[%clk 0:02:56]}  d6 {[%clk 0:02:57]} 3. Bb2 {[%clk 0:02:56]}  Nc6 {[%clk 0:02:57]} 4. f4 {[%clk 0:02:54]}  Nf6 {[%clk 0:02:55]} 5. d3 {[%clk 0:02:53]}  g6 {[%clk 0:02:55]} 6. Nf3 {[%clk 0:02:54]}  Bg7 {[%clk 0:02:55]} 7. Be2 {[%clk 0:02:54]}  O-O {[%clk 0:02:51]} 8. O-O {[%clk 0:02:53]}  b5 {[%clk 0:02:50]} 9. a4 {[%clk 0:02:52]}  bxa4 {[%clk 0:02:40]} 10. Rxa4 {[%clk 0:02:50]}  Bd7 {[%clk 0:02:33]} 11. Nbd2 {[%clk 0:02:44]}  a5 {[%clk 0:02:29]} 12. Nc4 {[%clk 0:02:43]}  Nd4 {[%clk 0:02:25]} 13. Ra2 {[%clk 0:02:39]}  Nxe2+ {[%clk 0:02:19]} 14. Qxe2 {[%clk 0:02:40]}  a4 {[%clk 0:02:20]} 15. Rfa1 {[%clk 0:02:38]}  Qb8 {[%clk 0:01:59]} 16. bxa4 {[%clk 0:02:31]}  Be6 {[%clk 0:01:43]} 17. Bc3 {[%clk 0:02:24]}  d5 {[%clk 0:01:39]} 18. exd5 {[%clk 0:02:20]}  Nxd5 {[%clk 0:01:40]} 19. Bxg7 {[%clk 0:02:20]}  Kxg7 {[%clk 0:01:34]} 20. g3 {[%clk 0:02:18]}  Nc3 {[%clk 0:01:32]} 21. Qe1 {[%clk 0:02:03]}  Nxa2 {[%clk 0:01:31]} 22. Rxa2 {[%clk 0:02:04]}  Bxc4 {[%clk 0:01:25]} 23. Qc3+ {[%clk 0:02:03]}  Kg8 {[%clk 0:01:22]} 24. Qxc4 {[%clk 0:02:02]}  Qb4 {[%clk 0:01:13]} 25. Qxb4 {[%clk 0:01:42]}  cxb4 {[%clk 0:01:14]} 26. Ne5 {[%clk 0:01:43]}  Rfb8 {[%clk 0:00:52]} 27. Nd7 {[%clk 0:01:43]}  Rb7 {[%clk 0:00:48]} 28. Nc5 {[%clk 0:01:43]}  Rc7 {[%clk 0:00:48]} 29. d4 {[%clk 0:01:43]}  Rca7 {[%clk 0:00:39]} 30. Rb2 {[%clk 0:01:42]}  Rxa4 {[%clk 0:00:39]} 31. Nxa4 {[%clk 0:01:41]}  Rxa4 {[%clk 0:00:40]} 32. Kf2 {[%clk 0:01:39]}  Kg7 {[%clk 0:00:40]} 33. Ke3 {[%clk 0:01:40]}  Kf6 {[%clk 0:00:40]} 34. Kd3 {[%clk 0:01:40]}  Kf5 {[%clk 0:00:39]} 35. Rb3 {[%clk 0:01:35]}  Ra3 {[%clk 0:00:23]} 36. Kc4 {[%clk 0:01:30]}  Ra2 {[%clk 0:00:23]} 37. Kd3 {[%clk 0:01:27]}  Ra3 {[%clk 0:00:23]} 38. h3 {[%clk 0:01:25]}  Ke6 {[%clk 0:00:22]} 39. Kc4 {[%clk 0:01:18]}  Ra2 {[%clk 0:00:22]} 40. Kd3 {[%clk 0:01:17]}  Ra3 {[%clk 0:00:22]} 41. Ke4 {[%clk 0:01:18]}  Ra2 {[%clk 0:00:21]} 42. Rxb4 {[%clk 0:01:15]}  Rxc2 {[%clk 0:00:21]} 43. Rb6+ {[%clk 0:01:15]}  Kd7 {[%clk 0:00:22]} 44. Rb7+ {[%clk 0:01:16]}  Rc7 {[%clk 0:00:21]} 45. Rb8 {[%clk 0:01:15]}  Ke6 {[%clk 0:00:20]} 46. g4 {[%clk 0:01:14]}  Kf6 {[%clk 0:00:19]} 47. h4 {[%clk 0:01:13]}  Kg7 {[%clk 0:00:19]} 48. Re8 {[%clk 0:01:11]}  Rd7 {[%clk 0:00:19]} 49. Ke5 {[%clk 0:01:06]}  h6 {[%clk 0:00:19]} 50. g5 {[%clk 0:01:01]}  hxg5 {[%clk 0:00:19]} 51. hxg5 {[%clk 0:01:01]}  Ra7 {[%clk 0:00:19]} 52. d5 {[%clk 0:01:00]}  Rb7 {[%clk 0:00:20]} 53. Rc8 {[%clk 0:00:59]}  Rd7 {[%clk 0:00:19]} 54. Rc4 {[%clk 0:00:58]}  Ra7 {[%clk 0:00:19]} 55. Rb4 {[%clk 0:00:58]}  Rd7 {[%clk 0:00:19]} 56. Re4 {[%clk 0:00:58]}  Ra7 {[%clk 0:00:19]} 57. Kd4 {[%clk 0:00:59]}  Ra4+ {[%clk 0:00:20]} 58. Kd3 {[%clk 0:00:59]}  Ra3+ {[%clk 0:00:20]} 59. Kc4 {[%clk 0:01:00]}  Ra4+ {[%clk 0:00:20]} 60. Kd3 {[%clk 0:01:00]}  Ra3+ {[%clk 0:00:21]} 61. Kd4 {[%clk 0:01:00]}  Ra4+ {[%clk 0:00:21]} 62. Ke3 {[%clk 0:00:58]}  Ra3+ {[%clk 0:00:21]} 63. Ke2 {[%clk 0:00:58]}  Ra2+ {[%clk 0:00:22]} 64. Kf3 {[%clk 0:00:58]}  Ra3+ {[%clk 0:00:22]} 65. Kg4 {[%clk 0:00:59]}  Ra7 {[%clk 0:00:23]} 66. Re3 {[%clk 0:00:59]}  Rd7 {[%clk 0:00:23]} 67. Re5 {[%clk 0:00:59]}  Ra7 {[%clk 0:00:23]} 68. Kf3 {[%clk 0:01:00]}  Ra3+ {[%clk 0:00:23]} 69. Ke2 {[%clk 0:01:00]}  Ra2+ {[%clk 0:00:24]} 70. Kd3 {[%clk 0:01:00]}  Ra7 {[%clk 0:00:24]} 71. Re3 {[%clk 0:00:56]}  Ra3+ {[%clk 0:00:24]} 72. Ke4 {[%clk 0:00:56]}  Ra4+ {[%clk 0:00:24]} 73. Ke5 {[%clk 0:00:56]}  Ra7 {[%clk 0:00:25]} 74. Rc3 {[%clk 0:00:55]}  Rd7 {[%clk 0:00:25]} 75. Kd4 {[%clk 0:00:54]}  Ra7 {[%clk 0:00:25]} 76. Kc5 {[%clk 0:00:53]}  Ra5+ {[%clk 0:00:24]} 77. Kc6 {[%clk 0:00:53]}  Ra4 {[%clk 0:00:24]} 78. Kd7 {[%clk 0:00:52]}  Re4 {[%clk 0:00:23]} 79. Rf3 {[%clk 0:00:47]}  Rd4 {[%clk 0:00:23]} 80. Kc6 {[%clk 0:00:47]}  Rc4+ {[%clk 0:00:23]} 81. Kb5 {[%clk 0:00:48]}  Rc7 {[%clk 0:00:23]} 82. Re3 {[%clk 0:00:48]}  f6 {[%clk 0:00:22]} 83. Kb6 {[%clk 0:00:47]}  Rd7 {[%clk 0:00:22]} 84. Kc6 {[%clk 0:00:48]}  Rd6+ {[%clk 0:00:23]} 85. Kc5 {[%clk 0:00:48]}  Kf7 {[%clk 0:00:23]} 86. Re4 {[%clk 0:00:47]}  Rd8 {[%clk 0:00:22]} 87. Re1 {[%clk 0:00:44]}  Rc8+ {[%clk 0:00:23]} 88. Kd4 {[%clk 0:00:45]}  Rh8 {[%clk 0:00:23]} 89. Re4 {[%clk 0:00:38]}  Rh1 {[%clk 0:00:21]} 90. gxf6 {[%clk 0:00:37]}  Kxf6 {[%clk 0:00:22]} 91. Re6+ {[%clk 0:00:36]}  Kf7 {[%clk 0:00:22]} 92. Re4 {[%clk 0:00:36]}  Rd1+ {[%clk 0:00:22]} 93. Ke5 {[%clk 0:00:36]}  Rh1 {[%clk 0:00:21]} 94. Re2 {[%clk 0:00:36]}  Rh5+ {[%clk 0:00:22]} 95. Ke4 {[%clk 0:00:36]}  Kf6 {[%clk 0:00:22]} 96. Ra2 {[%clk 0:00:36]}  Rh1 {[%clk 0:00:22]} 97. Ra6+ {[%clk 0:00:37]}  Kf7 {[%clk 0:00:22]} 98. Ra3 {[%clk 0:00:37]}  Re1+ {[%clk 0:00:23]} 99. Re3 {[%clk 0:00:37]}  Ra1 {[%clk 0:00:15]} 100. Ke5 {[%clk 0:00:35]}  Rh1 {[%clk 0:00:14]} 101. Re2 {[%clk 0:00:34]}  Rh5+ {[%clk 0:00:14]} 102. Kd4 {[%clk 0:00:34]}  Rh4 {[%clk 0:00:14]} 103. Ke3 {[%clk 0:00:34]}  Rh3+ {[%clk 0:00:14]} 104. Ke4 {[%clk 0:00:34]}  Rh1 {[%clk 0:00:14]} 105. Rg2 {[%clk 0:00:35]}  Ra1 {[%clk 0:00:15]} 106. Rh2 {[%clk 0:00:35]}  Re1+ {[%clk 0:00:15]} 107. Kd4 {[%clk 0:00:35]}  Kf6 {[%clk 0:00:16]} 108. Rh7 {[%clk 0:00:33]}  Rf1 {[%clk 0:00:15]} 109. Ke4 {[%clk 0:00:33]}  Re1+ {[%clk 0:00:15]} 110. Kf3 {[%clk 0:00:34]}  Rf1+ {[%clk 0:00:15]} 111. Ke3 {[%clk 0:00:34]}  Re1+ {[%clk 0:00:16]} 112. Kd3 {[%clk 0:00:31]}  Rd1+ {[%clk 0:00:15]} 113. Ke4 {[%clk 0:00:31]}  Re1+ {[%clk 0:00:16]} 114. Kf3 {[%clk 0:00:32]}  Rd1 {[%clk 0:00:16]} 115. Ke4 {[%clk 0:00:32]}  Re1+ {[%clk 0:00:16]} 1/2-1/2


[Site "https://www.chess.com"]

[Event "Titled Tuesday Blitz March 29 Early 2022"]
[White "Coto Mederos, Michel"]
[Black "Miszler, Levente"]
[WhiteFideId "3508528"]
[BlackFideId "763276"]
[WhiteElo "2427"]
[BlackElo "1966"]
[Result "1-0"]
[Round "04"]
[TimeControl "180+1"]
[Date "2022.03.30"]
[WhiteClock "0:00:08"]
[BlackClock "0:00:07"]

1. c4 {[%clk 0:02:59]}  c5 {[%clk 0:02:56]} 2. Nc3 {[%clk 0:02:57]}  Nc6 {[%clk 0:02:56]} 3. Nf3 {[%clk 0:02:58]}  g6 {[%clk 0:02:57]} 4. e3 {[%clk 0:02:58]}  Bg7 {[%clk 0:02:57]} 5. d4 {[%clk 0:02:58]}  cxd4 {[%clk 0:02:57]} 6. exd4 {[%clk 0:02:59]}  e6 {[%clk 0:02:53]} 7. Be2 {[%clk 0:02:39]}  d5 {[%clk 0:02:47]} 8. cxd5 {[%clk 0:02:36]}  exd5 {[%clk 0:02:48]} 9. O-O {[%clk 0:02:35]}  Nge7 {[%clk 0:02:48]} 10. Bf4 {[%clk 0:02:18]}  O-O {[%clk 0:02:46]} 11. Ne5 {[%clk 0:01:43]}  Nf5 {[%clk 0:02:43]} 12. Nxc6 {[%clk 0:01:36]}  bxc6 {[%clk 0:02:44]} 13. Be3 {[%clk 0:01:36]}  Nxe3 {[%clk 0:02:41]} 14. fxe3 {[%clk 0:01:37]}  Re8 {[%clk 0:02:41]} 15. Qd2 {[%clk 0:01:35]}  Bh6 {[%clk 0:02:37]} 16. Nd1 {[%clk 0:01:33]}  Qe7 {[%clk 0:02:35]} 17. Rf3 {[%clk 0:01:30]}  Bg4 {[%clk 0:02:35]} 18. Rg3 {[%clk 0:01:31]}  Bxe2 {[%clk 0:02:32]} 19. Qxe2 {[%clk 0:01:31]}  f5 {[%clk 0:02:24]} 20. Qf2 {[%clk 0:00:58]}  Rab8 {[%clk 0:02:16]} 21. Rc1 {[%clk 0:00:55]}  Rb6 {[%clk 0:02:15]} 22. b3 {[%clk 0:00:53]}  Qe4 {[%clk 0:02:03]} 23. Rf3 {[%clk 0:00:45]}  a5 {[%clk 0:01:48]} 24. g3 {[%clk 0:00:42]}  Ra6 {[%clk 0:01:47]} 25. Nc3 {[%clk 0:00:42]}  Qd3 {[%clk 0:01:44]} 26. e4 {[%clk 0:00:36]}  Qxf3 {[%clk 0:01:13]} 27. Qxf3 {[%clk 0:00:37]}  Bxc1 {[%clk 0:01:05]} 28. exd5 {[%clk 0:00:36]}  cxd5 {[%clk 0:00:55]} 29. Qxd5+ {[%clk 0:00:36]}  Rae6 {[%clk 0:00:55]} 30. Qc4 {[%clk 0:00:23]}  Kg7 {[%clk 0:00:51]} 31. d5 {[%clk 0:00:22]}  Re1+ {[%clk 0:00:44]} 32. Kf2 {[%clk 0:00:22]}  Bg5 {[%clk 0:00:41]} 33. d6 {[%clk 0:00:20]}  Rc1 {[%clk 0:00:29]} 34. Qd3 {[%clk 0:00:16]}  Bf6 {[%clk 0:00:22]} 35. Nd5 {[%clk 0:00:14]}  Rc6 {[%clk 0:00:14]} 36. Nc7 {[%clk 0:00:12]}  Re4 {[%clk 0:00:08]} 37. Qb5 {[%clk 0:00:09]}  Rxd6 {[%clk 0:00:07]} 38. Ne8+ {[%clk 0:00:08]}  Kf7 {[%clk 0:00:07]} 39. Nxd6+ {[%clk 0:00:08]} 1-0


[Site "https://www.chess.com"]

[Event "Titled Tuesday Blitz March 29 Early 2022"]
[White "Cramling Bellon, Anna"]
[Black "Petrova, Irina"]
[WhiteFideId "32009232"]
[BlackFideId "14124122"]
[WhiteElo "1905"]
[BlackElo "1993"]
[Result "0-1"]
[Round "04"]
[TimeControl "180+1"]
[Date "2022.03.30"]
[WhiteClock "0:00:05"]
[BlackClock "0:00:37"]

1. d4 {[%clk 0:02:58]}  d6 {[%clk 0:02:58]} 2. c4 {[%clk 0:02:56]}  e5 {[%clk 0:02:58]} 3. e3 {[%clk 0:02:54]}  e4 {[%clk 0:02:54]} 4. Nc3 {[%clk 0:02:54]}  f5 {[%clk 0:02:53]} 5. f3 {[%clk 0:02:32]}  Nf6 {[%clk 0:02:49]} 6. g3 {[%clk 0:02:18]}  exf3 {[%clk 0:02:36]} 7. Nxf3 {[%clk 0:02:16]}  Be7 {[%clk 0:02:35]} 8. Bg2 {[%clk 0:02:12]}  O-O {[%clk 0:02:35]} 9. O-O {[%clk 0:02:12]}  c6 {[%clk 0:02:34]} 10. d5 {[%clk 0:02:11]}  c5 {[%clk 0:02:30]} 11. Qe2 {[%clk 0:01:57]}  Na6 {[%clk 0:02:26]} 12. e4 {[%clk 0:01:53]}  fxe4 {[%clk 0:02:21]} 13. Nxe4 {[%clk 0:01:54]}  Nxe4 {[%clk 0:02:21]} 14. Qxe4 {[%clk 0:01:54]}  Bf5 {[%clk 0:02:21]} 15. Qe2 {[%clk 0:01:45]}  Nb4 {[%clk 0:02:17]} 16. Bd2 {[%clk 0:01:22]}  Nc2 {[%clk 0:01:57]} 17. Rac1 {[%clk 0:01:19]}  Bf6 {[%clk 0:01:54]} 18. Ne1 {[%clk 0:00:45]}  Nd4 {[%clk 0:01:48]} 19. Qd1 {[%clk 0:00:41]}  Qe7 {[%clk 0:01:30]} 20. Nf3 {[%clk 0:00:35]}  Rae8 {[%clk 0:01:19]} 21. Bc3 {[%clk 0:00:27]}  Ne2+ {[%clk 0:01:18]} 22. Kh1 {[%clk 0:00:27]}  Nxc1 {[%clk 0:01:17]} 23. Qxc1 {[%clk 0:00:27]}  Bxc3 {[%clk 0:01:16]} 24. Qxc3 {[%clk 0:00:27]}  Qe3 {[%clk 0:01:12]} 25. Qa5 {[%clk 0:00:10]}  Be4 {[%clk 0:00:58]} 26. Re1 {[%clk 0:00:09]}  Qf2 {[%clk 0:00:50]} 27. Rf1 {[%clk 0:00:07]}  Qxb2 {[%clk 0:00:46]} 28. Qc7 {[%clk 0:00:04]}  Bxf3 {[%clk 0:00:44]} 29. Bxf3 {[%clk 0:00:05]}  Rxf3 {[%clk 0:00:37]} 0-1


[Site "https://www.chess.com"]

[Event "Titled Tuesday Blitz March 29 Early 2022"]
[White "Dejmek, Mark"]
[Black "Suarez Uriel, Adrian"]
[WhiteFideId "2017628"]
[BlackFideId "22230874"]
[WhiteElo "2249"]
[BlackElo "2316"]
[Result "1-0"]
[Round "04"]
[TimeControl "180+1"]
[Date "2022.03.30"]
[WhiteClock "0:00:03"]
[BlackClock "0:00:44"]

1. Nf3 {[%clk 0:03:00]}  Nf6 {[%clk 0:02:59]} 2. g3 {[%clk 0:03:00]}  g6 {[%clk 0:02:59]} 3. b4 {[%clk 0:02:59]}  Bg7 {[%clk 0:03:00]} 4. Bb2 {[%clk 0:02:59]}  O-O {[%clk 0:03:01]} 5. Bg2 {[%clk 0:02:58]}  d6 {[%clk 0:03:01]} 6. c4 {[%clk 0:02:54]}  e5 {[%clk 0:03:01]} 7. d3 {[%clk 0:02:54]}  a5 {[%clk 0:03:01]} 8. b5 {[%clk 0:02:53]}  Nbd7 {[%clk 0:03:00]} 9. O-O {[%clk 0:02:52]}  Nc5 {[%clk 0:02:59]} 10. Nbd2 {[%clk 0:02:44]}  a4 {[%clk 0:02:55]} 11. Ba3 {[%clk 0:02:37]}  b6 {[%clk 0:02:54]} 12. Ng5 {[%clk 0:02:27]}  Ra7 {[%clk 0:02:51]} 13. Nge4 {[%clk 0:02:26]}  Nfxe4 {[%clk 0:02:50]} 14. Nxe4 {[%clk 0:02:26]}  Nxe4 {[%clk 0:02:51]} 15. Bxe4 {[%clk 0:02:25]}  f5 {[%clk 0:02:51]} 16. Bd5+ {[%clk 0:02:24]}  Kh8 {[%clk 0:02:51]} 17. Rb1 {[%clk 0:02:23]}  f4 {[%clk 0:02:51]} 18. Bb2 {[%clk 0:02:15]}  Bh3 {[%clk 0:02:47]} 19. Bg2 {[%clk 0:02:05]}  Qd7 {[%clk 0:02:46]} 20. d4 {[%clk 0:01:50]}  Bxg2 {[%clk 0:02:43]} 21. Kxg2 {[%clk 0:01:50]}  a3 {[%clk 0:02:37]} 22. Ba1 {[%clk 0:01:48]}  e4 {[%clk 0:02:37]} 23. Rb3 {[%clk 0:01:20]}  d5 {[%clk 0:02:26]} 24. cxd5 {[%clk 0:00:53]}  Qxd5 {[%clk 0:02:26]} 25. f3 {[%clk 0:00:54]}  exf3+ {[%clk 0:02:21]} 26. exf3 {[%clk 0:00:53]}  Ra4 {[%clk 0:02:18]} 27. Qc1 {[%clk 0:00:36]}  Rc4 {[%clk 0:02:15]} 28. Qxa3 {[%clk 0:00:30]}  Rc2+ {[%clk 0:02:13]} 29. Rf2 {[%clk 0:00:26]}  Rxf2+ {[%clk 0:02:12]} 30. Kxf2 {[%clk 0:00:26]}  Bxd4+ {[%clk 0:02:13]} 31. Bxd4+ {[%clk 0:00:24]}  Qxd4+ {[%clk 0:02:14]} 32. Kg2 {[%clk 0:00:23]}  Qd2+ {[%clk 0:02:13]} 33. Kh3 {[%clk 0:00:21]}  Rf5 {[%clk 0:01:59]} 34. g4 {[%clk 0:00:13]}  Rf7 {[%clk 0:01:42]} 35. Rd3 {[%clk 0:00:11]}  Qc2 {[%clk 0:01:27]} 36. Qc3+ {[%clk 0:00:05]}  Qxc3 {[%clk 0:01:26]} 37. Rxc3 {[%clk 0:00:06]}  Kg7 {[%clk 0:01:27]} 38. g5 {[%clk 0:00:06]}  h5 {[%clk 0:01:24]} 39. gxh6+ {[%clk 0:00:05]}  Kxh6 {[%clk 0:01:24]} 40. Kg4 {[%clk 0:00:06]}  Kg7 {[%clk 0:01:16]} 41. Rc4 {[%clk 0:00:06]}  Rd7 {[%clk 0:01:09]} 42. a4 {[%clk 0:00:05]}  Kf6 {[%clk 0:01:06]} 43. Kxf4 {[%clk 0:00:05]}  Rd2 {[%clk 0:01:05]} 44. Kg3 {[%clk 0:00:04]}  Rd7 {[%clk 0:01:04]} 45. Rc6+ {[%clk 0:00:04]}  Kf5 {[%clk 0:01:04]} 46. h4 {[%clk 0:00:03]}  Re7 {[%clk 0:01:02]} 47. Rc4 {[%clk 0:00:02]}  Rd7 {[%clk 0:01:02]} 48. Rc6 {[%clk 0:00:01]}  Rg7 {[%clk 0:01:01]} 49. Rc4 {[%clk 0:00:02]}  Ke5 {[%clk 0:01:00]} 50. Re4+ {[%clk 0:00:01]}  Kd5 {[%clk 0:01:00]} 51. Rg4 {[%clk 0:00:02]}  Ke5 {[%clk 0:00:55]} 52. h5 {[%clk 0:00:02]}  g5 {[%clk 0:00:56]} 53. h6 {[%clk 0:00:01]}  Rh7 {[%clk 0:00:54]} 54. Rxg5+ {[%clk 0:00:01]}  Kf6 {[%clk 0:00:55]} 55. Rh5 {[%clk 0:00:02]}  Kg6 {[%clk 0:00:56]} 56. Rh2 {[%clk 0:00:02]}  Rd7 {[%clk 0:00:54]} 57. Kf4 {[%clk 0:00:02]}  Kh7 {[%clk 0:00:54]} 58. Kg5 {[%clk 0:00:02]}  Rd4 {[%clk 0:00:53]} 59. f4 {[%clk 0:00:02]}  Rxa4 {[%clk 0:00:54]} 60. f5 {[%clk 0:00:02]}  Ra5 {[%clk 0:00:54]} 61. Re2 {[%clk 0:00:02]}  Rxb5 {[%clk 0:00:55]} 62. Re7+ {[%clk 0:00:03]}  Kg8 {[%clk 0:00:55]} 63. Rxc7 {[%clk 0:00:03]}  Rb1 {[%clk 0:00:55]} 64. Kg6 {[%clk 0:00:03]}  Rg1+ {[%clk 0:00:55]} 65. Kf6 {[%clk 0:00:04]}  b5 {[%clk 0:00:53]} 66. h7+ {[%clk 0:00:04]}  Kh8 {[%clk 0:00:54]} 67. Ke6 {[%clk 0:00:03]}  Re1+ {[%clk 0:00:48]} 68. Kd5 {[%clk 0:00:03]}  Re5+ {[%clk 0:00:45]} 69. Kxe5 {[%clk 0:00:02]}  b4 {[%clk 0:00:45]} 70. Kf6 {[%clk 0:00:02]}  b3 {[%clk 0:00:44]} 71. Kg6 {[%clk 0:00:03]}  b2 {[%clk 0:00:44]} 72. Rc8# {[%clk 0:00:03]} 1-0


[Site "https://www.chess.com"]

[Event "Titled Tuesday Blitz March 29 Early 2022"]
[White "Del Rio De Angelis, Salvador G."]
[Black "Batsiashvili, Nino"]
[WhiteFideId "2203138"]
[BlackFideId "13602993"]
[WhiteElo "2491"]
[BlackElo "2192"]
[Result "1-0"]
[Round "04"]
[TimeControl "180+1"]
[Date "2022.03.30"]
[WhiteClock "0:00:54"]
[BlackClock "0:00:07"]

1. c4 {[%clk 0:03:00]}  e6 {[%clk 0:02:57]} 2. d3 {[%clk 0:03:00]}  d5 {[%clk 0:02:58]} 3. g3 {[%clk 0:02:58]}  dxc4 {[%clk 0:02:56]} 4. Qa4+ {[%clk 0:02:58]}  Bd7 {[%clk 0:02:55]} 5. Qxc4 {[%clk 0:02:58]}  c5 {[%clk 0:02:55]} 6. Bg2 {[%clk 0:02:57]}  Bc6 {[%clk 0:02:55]} 7. Nf3 {[%clk 0:02:57]}  Nd7 {[%clk 0:02:51]} 8. O-O {[%clk 0:02:57]}  Ngf6 {[%clk 0:02:51]} 9. a3 {[%clk 0:02:57]}  b5 {[%clk 0:02:41]} 10. Qc2 {[%clk 0:02:57]}  Rc8 {[%clk 0:02:40]} 11. b3 {[%clk 0:02:57]}  Bd6 {[%clk 0:02:32]} 12. Bb2 {[%clk 0:02:57]}  O-O {[%clk 0:02:31]} 13. Nbd2 {[%clk 0:02:57]}  Qc7 {[%clk 0:02:30]} 14. Rac1 {[%clk 0:02:57]}  Qb7 {[%clk 0:02:14]} 15. Qb1 {[%clk 0:02:54]}  a6 {[%clk 0:02:09]} 16. Rfe1 {[%clk 0:02:53]}  h6 {[%clk 0:02:08]} 17. Nf1 {[%clk 0:02:52]}  Ng4 {[%clk 0:02:05]} 18. N1d2 {[%clk 0:02:49]}  Nde5 {[%clk 0:01:53]} 19. Qa1 {[%clk 0:02:48]}  Qb8 {[%clk 0:01:42]} 20. Rc2 {[%clk 0:02:35]}  Nxf3+ {[%clk 0:01:40]} 21. Nxf3 {[%clk 0:02:32]}  f6 {[%clk 0:01:24]} 22. Rec1 {[%clk 0:02:32]}  h5 {[%clk 0:01:23]} 23. d4 {[%clk 0:02:29]}  Bxf3 {[%clk 0:01:18]} 24. exf3 {[%clk 0:02:28]}  Nh6 {[%clk 0:01:10]} 25. dxc5 {[%clk 0:02:28]}  Bc7 {[%clk 0:01:11]} 26. b4 {[%clk 0:02:28]}  h4 {[%clk 0:01:05]} 27. Re2 {[%clk 0:02:27]}  e5 {[%clk 0:01:04]} 28. Qa2+ {[%clk 0:02:26]}  Kh8 {[%clk 0:01:04]} 29. Qe6 {[%clk 0:02:27]}  hxg3 {[%clk 0:01:01]} 30. hxg3 {[%clk 0:02:26]}  Rcd8 {[%clk 0:00:59]} 31. Rce1 {[%clk 0:02:17]}  a5 {[%clk 0:00:57]} 32. Qb3 {[%clk 0:02:10]}  a4 {[%clk 0:00:48]} 33. Qe3 {[%clk 0:02:07]}  Rd5 {[%clk 0:00:45]} 34. Rd2 {[%clk 0:01:51]}  Rxd2 {[%clk 0:00:42]} 35. Qxd2 {[%clk 0:01:51]}  Rd8 {[%clk 0:00:42]} 36. Qe2 {[%clk 0:01:51]}  Qc8 {[%clk 0:00:41]} 37. Qxb5 {[%clk 0:01:50]}  Rd2 {[%clk 0:00:41]} 38. Bc1 {[%clk 0:01:46]}  Rc2 {[%clk 0:00:40]} 39. Qxa4 {[%clk 0:01:46]}  Qf5 {[%clk 0:00:39]} 40. f4 {[%clk 0:01:39]}  Rxc1 {[%clk 0:00:31]} 41. Rxc1 {[%clk 0:01:38]}  exf4 {[%clk 0:00:32]} 42. Qe8+ {[%clk 0:01:38]}  Ng8 {[%clk 0:00:30]} 43. Qe4 {[%clk 0:01:34]}  Qg5 {[%clk 0:00:27]} 44. Qd5 {[%clk 0:01:28]}  f5 {[%clk 0:00:27]} 45. Re1 {[%clk 0:01:19]}  fxg3 {[%clk 0:00:27]} 46. Re8 {[%clk 0:01:19]}  gxf2+ {[%clk 0:00:27]} 47. Kxf2 {[%clk 0:01:19]}  Qf4+ {[%clk 0:00:21]} 48. Ke2 {[%clk 0:01:19]}  Qg4+ {[%clk 0:00:14]} 49. Kd3 {[%clk 0:01:03]}  Qd1+ {[%clk 0:00:09]} 50. Kc4 {[%clk 0:01:03]}  Qc2+ {[%clk 0:00:07]} 51. Kb5 {[%clk 0:01:02]}  Kh7 {[%clk 0:00:02]} 52. Qxg8+ {[%clk 0:01:00]}  Kg6 {[%clk 0:00:03]} 53. Re6+ {[%clk 0:00:58]}  Kg5 {[%clk 0:00:03]} 54. Qxg7+ {[%clk 0:00:57]}  Kf4 {[%clk 0:00:04]} 55. Qd4+ {[%clk 0:00:57]}  Kg3 {[%clk 0:00:04]} 56. Qe3+ {[%clk 0:00:54]}  Kxg2 {[%clk 0:00:04]} 57. Qe2+ {[%clk 0:00:54]}  Qxe2+ {[%clk 0:00:04]} 58. Rxe2+ {[%clk 0:00:54]}  Kf3 {[%clk 0:00:04]} 59. Re7 {[%clk 0:00:54]}  Bd8 {[%clk 0:00:04]} 60. Rd7 {[%clk 0:00:54]}  Bf6 {[%clk 0:00:04]} 61. a4 {[%clk 0:00:54]}  Be5 {[%clk 0:00:04]} 62. a5 {[%clk 0:00:54]}  f4 {[%clk 0:00:05]} 63. a6 {[%clk 0:00:55]}  Kg2 {[%clk 0:00:06]} 64. a7 {[%clk 0:00:54]}  f3 {[%clk 0:00:07]} 65. a8=Q {[%clk 0:00:54]} 1-0


[Site "https://www.chess.com"]

[Event "Titled Tuesday Blitz March 29 Early 2022"]
[White "Demin, Vladimir"]
[Black "volunteers1998"]
[WhiteFideId "4167457"]
[WhiteElo "2498"]
[BlackElo "2274"]
[Result "0-1"]
[Round "04"]
[TimeControl "180+1"]
[Date "2022.03.30"]
[WhiteClock "0:00:07"]
[BlackClock "0:00:06"]

1. e4 {[%clk 0:03:00]}  c5 {[%clk 0:03:00]} 2. Nf3 {[%clk 0:03:00]}  Nc6 {[%clk 0:02:59]} 3. d4 {[%clk 0:02:59]}  cxd4 {[%clk 0:02:58]} 4. Nxd4 {[%clk 0:03:00]}  Nf6 {[%clk 0:02:57]} 5. Nc3 {[%clk 0:03:00]}  e5 {[%clk 0:02:56]} 6. Ndb5 {[%clk 0:03:00]}  d6 {[%clk 0:02:55]} 7. Bg5 {[%clk 0:03:00]}  a6 {[%clk 0:02:54]} 8. Na3 {[%clk 0:03:00]}  b5 {[%clk 0:02:52]} 9. Bxf6 {[%clk 0:03:00]}  gxf6 {[%clk 0:02:51]} 10. Nd5 {[%clk 0:03:01]}  Be6 {[%clk 0:02:40]} 11. c3 {[%clk 0:02:37]}  Bg7 {[%clk 0:02:38]} 12. Nc2 {[%clk 0:02:36]}  O-O {[%clk 0:02:33]} 13. Nce3 {[%clk 0:02:36]}  Rb8 {[%clk 0:02:27]} 14. Bd3 {[%clk 0:02:33]}  a5 {[%clk 0:02:22]} 15. O-O {[%clk 0:02:16]}  b4 {[%clk 0:02:19]} 16. f4 {[%clk 0:02:16]}  bxc3 {[%clk 0:02:17]} 17. bxc3 {[%clk 0:02:15]}  exf4 {[%clk 0:02:14]} 18. Rxf4 {[%clk 0:01:58]}  Ne5 {[%clk 0:02:11]} 19. Be2 {[%clk 0:01:37]}  Bh6 {[%clk 0:01:58]} 20. Rh4 {[%clk 0:01:36]}  Bxe3+ {[%clk 0:01:55]} 21. Nxe3 {[%clk 0:01:36]}  Qb6 {[%clk 0:01:52]} 22. Qd2 {[%clk 0:01:03]}  Qb2 {[%clk 0:01:49]} 23. Qe1 {[%clk 0:01:03]}  Rfc8 {[%clk 0:01:43]} 24. Rc1 {[%clk 0:00:50]}  a4 {[%clk 0:01:39]} 25. Rc2 {[%clk 0:00:43]}  Qb1 {[%clk 0:01:37]} 26. Bd1 {[%clk 0:00:38]}  Qb6 {[%clk 0:01:31]} 27. Kh1 {[%clk 0:00:32]}  Kf8 {[%clk 0:01:19]} 28. Rxh7 {[%clk 0:00:31]}  Ke7 {[%clk 0:01:17]} 29. Bh5 {[%clk 0:00:28]}  Qb1 {[%clk 0:01:12]} 30. Rc1 {[%clk 0:00:28]}  Qxe4 {[%clk 0:01:10]} 31. Rg7 {[%clk 0:00:22]}  Nd3 {[%clk 0:01:07]} 32. Rxf7+ {[%clk 0:00:18]}  Bxf7 {[%clk 0:01:05]} 33. Nf5+ {[%clk 0:00:18]}  Kf8 {[%clk 0:00:59]} 34. Qxe4 {[%clk 0:00:18]}  Nf2+ {[%clk 0:00:58]} 35. Kg1 {[%clk 0:00:17]}  Nxe4 {[%clk 0:00:58]} 36. Bxf7 {[%clk 0:00:17]}  Kxf7 {[%clk 0:00:56]} 37. Re1 {[%clk 0:00:17]}  Rc4 {[%clk 0:00:45]} 38. g4 {[%clk 0:00:15]}  Rb5 {[%clk 0:00:40]} 39. Rxe4 {[%clk 0:00:13]}  Rxe4 {[%clk 0:00:39]} 40. Nxd6+ {[%clk 0:00:13]}  Ke7 {[%clk 0:00:35]} 41. Nxe4 {[%clk 0:00:14]}  Rb1+ {[%clk 0:00:33]} 42. Kg2 {[%clk 0:00:13]}  Rb2+ {[%clk 0:00:27]} 43. Kg3 {[%clk 0:00:14]}  Rxa2 {[%clk 0:00:25]} 44. h4 {[%clk 0:00:14]}  Re2 {[%clk 0:00:22]} 45. Nc5 {[%clk 0:00:13]}  a3 {[%clk 0:00:17]} 46. h5 {[%clk 0:00:13]}  a2 {[%clk 0:00:13]} 47. Nb3 {[%clk 0:00:13]}  Rb2 {[%clk 0:00:10]} 48. Na1 {[%clk 0:00:13]}  Rb1 {[%clk 0:00:09]} 49. Nc2 {[%clk 0:00:13]}  Rb2 {[%clk 0:00:09]} 50. Na1 {[%clk 0:00:13]}  Kf7 {[%clk 0:00:06]} 51. Kf4 {[%clk 0:00:13]}  Rb1 {[%clk 0:00:06]} 52. Nc2 {[%clk 0:00:13]}  Rf1+ {[%clk 0:00:06]} 53. Ke4 {[%clk 0:00:11]}  Rc1 {[%clk 0:00:05]} 54. Kd3 {[%clk 0:00:07]}  Rxc2 {[%clk 0:00:05]} 55. Kxc2 {[%clk 0:00:07]}  a1=Q {[%clk 0:00:06]} 0-1


[Site "https://www.chess.com"]